[Event "Titled Tuesday Blitz January 10 Late 2023"]
[White "Aldokhin, Ivan"]
[Black "Goncalves, Davi Sulzbacher"]
[WhiteFideId "24115720"]
[BlackFideId "2154510"]
[WhiteElo "2413"]
[BlackElo "2282"]
[Result "1-0"]
[Round "05"]
[TimeControl "180+2"]
[Date "2023.01.10"]
[WhiteClock "0:01:11"]
[BlackClock "0:00:12"]

1. e4 {[%clk 0:00:00]}  c5 {[%clk 0:00:00]} 2. Nf3 {[%clk 0:03:00]}  d6 {[%clk 0:02:59]} 3. d4 {[%clk 0:03:01]}  cxd4 {[%clk 0:03:00]} 4. Nxd4 {[%clk 0:03:02]}  Nf6 {[%clk 0:03:01]} 5. Nc3 {[%clk 0:03:03]}  a6 {[%clk 0:03:01]} 6. Bc4 {[%clk 0:03:03]}  e6 {[%clk 0:03:01]} 7. Bb3 {[%clk 0:03:04]}  Nbd7 {[%clk 0:03:01]} 8. O-O {[%clk 0:03:02]}  Nc5 {[%clk 0:03:01]} 9. Re1 {[%clk 0:03:00]}  Be7 {[%clk 0:03:01]} 10. Qf3 {[%clk 0:02:53]}  O-O {[%clk 0:02:59]} 11. Qg3 {[%clk 0:02:52]}  Re8 {[%clk 0:02:55]} 12. Bh6 {[%clk 0:02:52]}  Bf8 {[%clk 0:02:43]} 13. Rad1 {[%clk 0:02:48]}  Nh5 {[%clk 0:02:32]} 14. Qf3 {[%clk 0:02:46]}  gxh6 {[%clk 0:02:07]} 15. Qxh5 {[%clk 0:02:44]}  Qg5 {[%clk 0:02:01]} 16. Qh3 {[%clk 0:02:43]}  Bd7 {[%clk 0:02:01]} 17. Re3 {[%clk 0:02:17]}  Kh8 {[%clk 0:01:42]} 18. Rg3 {[%clk 0:02:07]}  e5 {[%clk 0:01:31]} 19. Nf5 {[%clk 0:02:07]}  Qg6 {[%clk 0:01:10]} 20. Rxg6 {[%clk 0:02:06]}  fxg6 {[%clk 0:00:25]} 21. Qh4 {[%clk 0:01:55]}  gxf5 {[%clk 0:00:26]} 22. exf5 {[%clk 0:01:34]}  e4 {[%clk 0:00:23]} 23. Nd5 {[%clk 0:01:34]}  Re5 {[%clk 0:00:15]} 24. Qf6+ {[%clk 0:01:23]}  Bg7 {[%clk 0:00:13]} 25. Qxd6 {[%clk 0:01:15]}  Nxb3 {[%clk 0:00:13]} 26. f6 {[%clk 0:01:15]}  Rg5 {[%clk 0:00:12]} 27. fxg7+ {[%clk 0:01:11]} 1-0


[Site "https://www.chess.com"]

[Event "Titled Tuesday Blitz January 10 Late 2023"]
[White "Paszewski, Mateusz"]
[Black "Sivakumar, Shaaketh"]
[WhiteFideId "1141058"]
[BlackFideId "30940176"]
[WhiteElo "2279"]
[BlackElo "2337"]
[Result "1-0"]
[Round "05"]
[TimeControl "180+2"]
[Date "2023.01.10"]
[WhiteClock "0:00:09"]
[BlackClock "0:00:03"]

1. c4 {[%clk 0:00:00]}  e6 {[%clk 0:00:00]} 2. g3 {[%clk 0:03:00]}  Nf6 {[%clk 0:01:51]} 3. Bg2 {[%clk 0:02:59]}  c5 {[%clk 0:01:48]} 4. Nf3 {[%clk 0:02:59]}  Nc6 {[%clk 0:01:48]} 5. O-O {[%clk 0:02:59]}  g6 {[%clk 0:01:48]} 6. d4 {[%clk 0:03:00]}  cxd4 {[%clk 0:01:48]} 7. Nxd4 {[%clk 0:02:59]}  Bg7 {[%clk 0:01:47]} 8. Nc3 {[%clk 0:03:00]}  Nxd4 {[%clk 0:01:47]} 9. Qxd4 {[%clk 0:02:56]}  O-O {[%clk 0:01:45]} 10. Qd3 {[%clk 0:02:56]}  Qe7 {[%clk 0:01:45]} 11. Bf4 {[%clk 0:02:50]}  Ne8 {[%clk 0:01:42]} 12. Rfd1 {[%clk 0:02:46]}  a6 {[%clk 0:01:41]} 13. Rac1 {[%clk 0:02:42]}  g5 {[%clk 0:01:37]} 14. Be3 {[%clk 0:02:41]}  d6 {[%clk 0:01:33]} 15. Bd4 {[%clk 0:02:38]}  Rb8 {[%clk 0:01:31]} 16. Bxg7 {[%clk 0:02:36]}  Kxg7 {[%clk 0:01:01]} 17. Ne4 {[%clk 0:02:34]}  Bd7 {[%clk 0:01:02]} 18. Nxd6 {[%clk 0:02:34]}  Bc6 {[%clk 0:00:57]} 19. Bxc6 {[%clk 0:02:29]}  bxc6 {[%clk 0:00:43]} 20. Qc3+ {[%clk 0:02:14]}  Nf6 {[%clk 0:00:44]} 21. Ne4 {[%clk 0:02:14]}  h6 {[%clk 0:00:42]} 22. b3 {[%clk 0:02:13]}  Kg6 {[%clk 0:00:42]} 23. Nxf6 {[%clk 0:02:04]}  Qxf6 {[%clk 0:00:41]} 24. Qxf6+ {[%clk 0:02:03]}  Kxf6 {[%clk 0:00:42]} 25. Rd6 {[%clk 0:02:03]}  Rfc8 {[%clk 0:00:42]} 26. Rcd1 {[%clk 0:02:04]}  a5 {[%clk 0:00:40]} 27. Rd7 {[%clk 0:02:04]}  a4 {[%clk 0:00:40]} 28. R1d3 {[%clk 0:02:04]}  g4 {[%clk 0:00:40]} 29. Kg2 {[%clk 0:02:05]}  c5 {[%clk 0:00:35]} 30. Ra7 {[%clk 0:01:57]}  axb3 {[%clk 0:00:28]} 31. axb3 {[%clk 0:01:48]}  Rf8 {[%clk 0:00:28]} 32. h3 {[%clk 0:01:49]}  h5 {[%clk 0:00:21]} 33. hxg4 {[%clk 0:01:35]}  hxg4 {[%clk 0:00:21]} 34. e3 {[%clk 0:01:20]}  Rh8 {[%clk 0:00:22]} 35. Rdd7 {[%clk 0:01:17]}  Rh7 {[%clk 0:00:22]} 36. Rd3 {[%clk 0:01:15]}  Rbh8 {[%clk 0:00:22]} 37. Kf1 {[%clk 0:00:52]}  Rh1+ {[%clk 0:00:21]} 38. Ke2 {[%clk 0:00:51]}  Rb1 {[%clk 0:00:21]} 39. Rc7 {[%clk 0:00:52]}  Rhh1 {[%clk 0:00:21]} 40. Rd2 {[%clk 0:00:29]}  Rxb3 {[%clk 0:00:20]} 41. Rxc5 {[%clk 0:00:25]}  Rc1 {[%clk 0:00:15]} 42. Rc7 {[%clk 0:00:22]}  Rbc3 {[%clk 0:00:15]} 43. Rdd7 {[%clk 0:00:22]}  R1c2+ {[%clk 0:00:15]} 44. Kf1 {[%clk 0:00:19]}  Ke5 {[%clk 0:00:15]} 45. Rxf7 {[%clk 0:00:19]}  Rc1+ {[%clk 0:00:13]} 46. Kg2 {[%clk 0:00:17]}  R1c2 {[%clk 0:00:10]} 47. Rc5+ {[%clk 0:00:17]}  Kd6 {[%clk 0:00:11]} 48. Rg5 {[%clk 0:00:10]}  Rxe3 {[%clk 0:00:11]} 49. Rxg4 {[%clk 0:00:11]}  Ree2 {[%clk 0:00:10]} 50. Rgf4 {[%clk 0:00:11]}  e5 {[%clk 0:00:11]} 51. R4f6+ {[%clk 0:00:09]}  Kc5 {[%clk 0:00:11]} 52. Re7 {[%clk 0:00:08]}  e4 {[%clk 0:00:11]} 53. Rf5+ {[%clk 0:00:08]}  Kd4 {[%clk 0:00:10]} 54. Rf4 {[%clk 0:00:04]}  Kd3 {[%clk 0:00:11]} 55. g4 {[%clk 0:00:05]}  e3 {[%clk 0:00:10]} 56. Ref7 {[%clk 0:00:04]}  Rxc4 {[%clk 0:00:10]} 57. Rxc4 {[%clk 0:00:04]}  Kxc4 {[%clk 0:00:05]} 58. Kg3 {[%clk 0:00:04]}  exf2 {[%clk 0:00:06]} 59. Rxf2 {[%clk 0:00:03]}  Re3+ {[%clk 0:00:06]} 60. Kh4 {[%clk 0:00:04]}  Kd5 {[%clk 0:00:06]} 61. g5 {[%clk 0:00:05]}  Ke6 {[%clk 0:00:05]} 62. g6 {[%clk 0:00:05]}  Re1 {[%clk 0:00:06]} 63. Kg5 {[%clk 0:00:05]}  Rg1+ {[%clk 0:00:01]} 64. Kh6 {[%clk 0:00:06]}  Ke7 {[%clk 0:00:02]} 65. Kg7 {[%clk 0:00:06]}  Ke6 {[%clk 0:00:02]} 66. Kh7 {[%clk 0:00:07]}  Ke7 {[%clk 0:00:02]} 67. g7 {[%clk 0:00:07]}  Rh1+ {[%clk 0:00:03]} 68. Kg8 {[%clk 0:00:08]}  Ke6 {[%clk 0:00:03]} 69. Re2+ {[%clk 0:00:08]}  Kd7 {[%clk 0:00:02]} 70. Re4 {[%clk 0:00:07]}  Kd8 {[%clk 0:00:02]} 71. Kf7 {[%clk 0:00:06]}  Rf1+ {[%clk 0:00:02]} 72. Kg6 {[%clk 0:00:07]}  Rg1+ {[%clk 0:00:03]} 73. Kf6 {[%clk 0:00:07]}  Rf1+ {[%clk 0:00:03]} 74. Kg5 {[%clk 0:00:08]}  Rf8 {[%clk 0:00:03]} 75. gxf8=Q+ {[%clk 0:00:09]} 1-0


[Site "https://www.chess.com"]

[Event "Titled Tuesday Blitz January 10 Late 2023"]
[White "Dudzinski, Pawel"]
[Black "Sebag, Marie"]
[WhiteFideId "1117890"]
[BlackFideId "617822"]
[WhiteElo "2186"]
[BlackElo "2430"]
[Result "0-1"]
[Round "05"]
[TimeControl "180+2"]
[Date "2023.01.10"]
[WhiteClock "0:00:03"]
[BlackClock "0:00:28"]

1. e4 {[%clk 0:00:00]}  c5 {[%clk 0:00:00]} 2. c4 {[%clk 0:02:54]}  Nc6 {[%clk 0:02:59]} 3. Nc3 {[%clk 0:02:51]}  g6 {[%clk 0:02:58]} 4. g3 {[%clk 0:02:52]}  Bg7 {[%clk 0:02:59]} 5. Bg2 {[%clk 0:02:52]}  d6 {[%clk 0:02:58]} 6. Nge2 {[%clk 0:02:53]}  Rb8 {[%clk 0:02:57]} 7. Rb1 {[%clk 0:02:53]}  Nf6 {[%clk 0:02:57]} 8. a3 {[%clk 0:02:54]}  O-O {[%clk 0:02:56]} 9. b4 {[%clk 0:02:54]}  b6 {[%clk 0:02:54]} 10. d3 {[%clk 0:02:51]}  Bb7 {[%clk 0:02:54]} 11. O-O {[%clk 0:02:44]}  e6 {[%clk 0:02:53]} 12. h3 {[%clk 0:02:42]}  Nd7 {[%clk 0:02:53]} 13. Be3 {[%clk 0:02:32]}  Nd4 {[%clk 0:02:52]} 14. Bxd4 {[%clk 0:02:28]}  cxd4 {[%clk 0:02:51]} 15. Nb5 {[%clk 0:02:15]}  e5 {[%clk 0:02:49]} 16. Nxa7 {[%clk 0:02:15]}  f5 {[%clk 0:02:29]} 17. exf5 {[%clk 0:02:10]}  gxf5 {[%clk 0:02:27]} 18. f4 {[%clk 0:02:03]}  Bxg2 {[%clk 0:02:13]} 19. Kxg2 {[%clk 0:01:57]}  Ra8 {[%clk 0:02:11]} 20. Nb5 {[%clk 0:01:53]}  Qe7 {[%clk 0:02:03]} 21. Qd2 {[%clk 0:01:51]}  Kh8 {[%clk 0:02:00]} 22. Rbe1 {[%clk 0:01:19]}  Qf6 {[%clk 0:01:57]} 23. Rf2 {[%clk 0:01:18]}  Rg8 {[%clk 0:01:48]} 24. Ref1 {[%clk 0:01:00]}  Bh6 {[%clk 0:01:43]} 25. Qe1 {[%clk 0:00:54]}  Raf8 {[%clk 0:01:43]} 26. fxe5 {[%clk 0:00:50]}  dxe5 {[%clk 0:01:23]} 27. g4 {[%clk 0:00:19]}  Qc6+ {[%clk 0:01:16]} 28. Kh2 {[%clk 0:00:12]}  fxg4 {[%clk 0:01:06]} 29. Rxf8 {[%clk 0:00:05]}  Nxf8 {[%clk 0:01:06]} 30. Ng3 {[%clk 0:00:05]}  Be3 {[%clk 0:01:05]} 31. Rf5 {[%clk 0:00:03]}  gxh3 {[%clk 0:00:38]} 32. Rxe5 {[%clk 0:00:03]}  Qg2# {[%clk 0:00:28]} 0-1


[Site "https://www.chess.com"]

[Event "Titled Tuesday Blitz January 10 Late 2023"]
[White "Suder, Jakub"]
[Black "Bozorov, Makhsum"]
[WhiteFideId "1195310"]
[BlackFideId "14201330"]
[WhiteElo "2244"]
[BlackElo "2145"]
[Result "0-1"]
[Round "05"]
[TimeControl "180+2"]
[Date "2023.01.10"]
[WhiteClock "0:02:11"]
[BlackClock "0:00:52"]

1. d4 {[%clk 0:00:00]}  Nf6 {[%clk 0:00:00]} 2. c4 {[%clk 0:02:58]}  g6 {[%clk 0:02:59]} 3. Nc3 {[%clk 0:02:59]}  Bg7 {[%clk 0:02:59]} 4. e4 {[%clk 0:03:00]}  O-O {[%clk 0:02:59]} 5. Nf3 {[%clk 0:03:00]}  d6 {[%clk 0:03:00]} 6. Be2 {[%clk 0:03:01]}  e5 {[%clk 0:03:00]} 7. O-O {[%clk 0:03:02]}  Nc6 {[%clk 0:03:00]} 8. d5 {[%clk 0:03:02]}  Ne7 {[%clk 0:03:01]} 9. Ne1 {[%clk 0:03:02]}  Nd7 {[%clk 0:03:01]} 10. Be3 {[%clk 0:03:03]}  f5 {[%clk 0:03:01]} 11. f3 {[%clk 0:03:03]}  f4 {[%clk 0:03:02]} 12. Bf2 {[%clk 0:03:04]}  g5 {[%clk 0:03:02]} 13. Nb5 {[%clk 0:03:04]}  b6 {[%clk 0:03:03]} 14. b4 {[%clk 0:03:05]}  Ng6 {[%clk 0:02:56]} 15. Nd3 {[%clk 0:03:03]}  Nf6 {[%clk 0:02:52]} 16. c5 {[%clk 0:03:02]}  g4 {[%clk 0:02:44]} 17. cxd6 {[%clk 0:03:01]}  cxd6 {[%clk 0:02:39]} 18. Rc1 {[%clk 0:02:59]}  Rf7 {[%clk 0:02:38]} 19. Qc2 {[%clk 0:03:00]}  g3 {[%clk 0:02:39]} 20. hxg3 {[%clk 0:02:56]}  fxg3 {[%clk 0:02:35]} 21. Bxg3 {[%clk 0:02:57]}  Nh5 {[%clk 0:02:35]} 22. Bf2 {[%clk 0:02:58]}  Qg5 {[%clk 0:02:34]} 23. Nxd6 {[%clk 0:02:58]}  Ngf4 {[%clk 0:02:33]} 24. Nxf4 {[%clk 0:02:55]}  Nxf4 {[%clk 0:02:26]} 25. g4 {[%clk 0:02:51]}  Rf6 {[%clk 0:02:27]} 26. Qxc8+ {[%clk 0:02:49]}  Rxc8 {[%clk 0:01:34]} 27. Rxc8+ {[%clk 0:02:22]}  Bf8 {[%clk 0:01:28]} 28. Bb5 {[%clk 0:02:23]}  Rxd6 {[%clk 0:01:27]} 29. Rfc1 {[%clk 0:02:16]}  Nh3+ {[%clk 0:01:19]} 30. Kg2 {[%clk 0:02:17]}  Nxf2 {[%clk 0:01:10]} 31. Kxf2 {[%clk 0:02:15]}  Qd2+ {[%clk 0:01:10]} 32. Kg1 {[%clk 0:02:15]}  Rh6 {[%clk 0:01:01]} 33. R8c2 {[%clk 0:02:15]}  Qe3+ {[%clk 0:00:53]} 34. Kg2 {[%clk 0:02:11]}  Qf4 {[%clk 0:00:52]} 0-1


[Site "https://www.chess.com"]

[Event "Titled Tuesday Blitz January 10 Late 2023"]
[White "Haszon, David"]
[Black "Bayo Milagro, Alvaro"]
[WhiteFideId "733610"]
[BlackFideId "22275240"]
[WhiteElo "2264"]
[BlackElo "2287"]
[Result "1-0"]
[Round "05"]
[TimeControl "180+2"]
[Date "2023.01.10"]
[WhiteClock "0:00:53"]
[BlackClock "0:00:24"]

1. d4 {[%clk 0:00:00]}  Nf6 {[%clk 0:00:00]} 2. Bf4 {[%clk 0:03:00]}  e6 {[%clk 0:02:58]} 3. e3 {[%clk 0:03:00]}  d5 {[%clk 0:02:54]} 4. Nd2 {[%clk 0:02:58]}  c5 {[%clk 0:02:52]} 5. c3 {[%clk 0:02:55]}  Nc6 {[%clk 0:02:52]} 6. Ngf3 {[%clk 0:02:55]}  Bd6 {[%clk 0:02:52]} 7. Bg3 {[%clk 0:02:53]}  O-O {[%clk 0:02:52]} 8. Bd3 {[%clk 0:02:53]}  b6 {[%clk 0:02:52]} 9. e4 {[%clk 0:02:51]}  Be7 {[%clk 0:02:51]} 10. e5 {[%clk 0:02:51]}  Nh5 {[%clk 0:02:51]} 11. Ng5 {[%clk 0:02:48]}  Bxg5 {[%clk 0:02:51]} 12. Qxh5 {[%clk 0:02:28]}  g6 {[%clk 0:02:42]} 13. Qe2 {[%clk 0:02:28]}  cxd4 {[%clk 0:02:40]} 14. h4 {[%clk 0:02:12]}  Bh6 {[%clk 0:02:32]} 15. h5 {[%clk 0:02:11]}  Bg7 {[%clk 0:01:50]} 16. Nf3 {[%clk 0:02:08]}  dxc3 {[%clk 0:01:51]} 17. bxc3 {[%clk 0:01:49]}  Qc7 {[%clk 0:01:49]} 18. Rc1 {[%clk 0:01:50]}  Nb4 {[%clk 0:01:21]} 19. Bb1 {[%clk 0:01:21]}  Ba6 {[%clk 0:01:14]} 20. Qd2 {[%clk 0:01:16]}  Nc6 {[%clk 0:01:12]} 21. Qg5 {[%clk 0:01:14]}  Ne7 {[%clk 0:01:01]} 22. Qh4 {[%clk 0:01:05]}  Nf5 {[%clk 0:00:28]} 23. Bxf5 {[%clk 0:00:56]}  exf5 {[%clk 0:00:25]} 24. hxg6 {[%clk 0:00:57]}  fxg6 {[%clk 0:00:23]} 25. Qxh7+ {[%clk 0:00:53]}  Kf7 {[%clk 0:00:24]} 26. e6+ {[%clk 0:00:53]} 1-0


[Site "https://www.chess.com"]

[Event "Titled Tuesday Blitz January 10 Late 2023"]
[White "Tokhirjonova, Gulrukhbegim"]
[Black "Lopez Del Alamo, Antonio"]
[WhiteFideId "14203626"]
[BlackFideId "2227339"]
[WhiteElo "2340"]
[BlackElo "2280"]
[Result "1-0"]
[Round "05"]
[TimeControl "180+2"]
[Date "2023.01.10"]
[WhiteClock "0:00:42"]
[BlackClock "0:00:02"]

1. e4 {[%clk 0:00:00]}  c5 {[%clk 0:00:00]} 2. Nf3 {[%clk 0:03:00]}  e6 {[%clk 0:02:58]} 3. Nc3 {[%clk 0:02:59]}  Nc6 {[%clk 0:02:57]} 4. Bb5 {[%clk 0:03:00]}  Nd4 {[%clk 0:02:55]} 5. Nxd4 {[%clk 0:02:59]}  cxd4 {[%clk 0:02:53]} 6. Ne2 {[%clk 0:02:59]}  Qb6 {[%clk 0:02:54]} 7. a4 {[%clk 0:02:59]}  a6 {[%clk 0:02:53]} 8. Bd3 {[%clk 0:02:53]}  Ne7 {[%clk 0:02:51]} 9. O-O {[%clk 0:02:52]}  Nc6 {[%clk 0:02:50]} 10. f4 {[%clk 0:02:52]}  Nb4 {[%clk 0:02:48]} 11. Kh1 {[%clk 0:02:51]}  Nxd3 {[%clk 0:02:42]} 12. cxd3 {[%clk 0:02:51]}  d6 {[%clk 0:02:41]} 13. e5 {[%clk 0:02:52]}  Bd7 {[%clk 0:02:28]} 14. b3 {[%clk 0:02:50]}  Bc6 {[%clk 0:02:22]} 15. Bb2 {[%clk 0:02:50]}  Rd8 {[%clk 0:02:19]} 16. Bxd4 {[%clk 0:02:50]}  Qc7 {[%clk 0:02:17]} 17. a5 {[%clk 0:02:49]}  Qd7 {[%clk 0:02:16]} 18. Bb6 {[%clk 0:02:48]}  Rc8 {[%clk 0:02:11]} 19. d4 {[%clk 0:02:47]}  Be7 {[%clk 0:02:12]} 20. Nc3 {[%clk 0:02:48]}  O-O {[%clk 0:02:06]} 21. Qg4 {[%clk 0:02:44]}  g6 {[%clk 0:02:04]} 22. d5 {[%clk 0:02:41]}  Bb5 {[%clk 0:02:01]} 23. Rf3 {[%clk 0:02:39]}  dxe5 {[%clk 0:01:19]} 24. fxe5 {[%clk 0:02:21]}  Rxc3 {[%clk 0:01:15]} 25. dxc3 {[%clk 0:02:20]}  Be2 {[%clk 0:01:14]} 26. d6 {[%clk 0:02:13]}  Bd8 {[%clk 0:01:02]} 27. Bd4 {[%clk 0:02:11]}  Qc6 {[%clk 0:01:02]} 28. b4 {[%clk 0:02:02]}  Bxf3 {[%clk 0:00:48]} 29. gxf3 {[%clk 0:01:49]}  Qc4 {[%clk 0:00:38]} 30. Re1 {[%clk 0:01:48]}  Qd3 {[%clk 0:00:33]} 31. Rg1 {[%clk 0:01:45]}  Qc4 {[%clk 0:00:26]} 32. Qe4 {[%clk 0:01:23]}  Qc8 {[%clk 0:00:18]} 33. h3 {[%clk 0:01:19]}  Qd7 {[%clk 0:00:13]} 34. Kh2 {[%clk 0:01:14]}  f5 {[%clk 0:00:13]} 35. exf6 {[%clk 0:01:14]}  Bxf6 {[%clk 0:00:11]} 36. Bc5 {[%clk 0:01:08]}  Bg7 {[%clk 0:00:10]} 37. Re1 {[%clk 0:01:08]}  e5 {[%clk 0:00:07]} 38. Qd5+ {[%clk 0:01:07]}  Kh8 {[%clk 0:00:07]} 39. Kg2 {[%clk 0:01:05]}  Qf5 {[%clk 0:00:07]} 40. d7 {[%clk 0:01:05]}  Qg5+ {[%clk 0:00:07]} 41. Kh2 {[%clk 0:01:02]}  Qh4 {[%clk 0:00:04]} 42. Re2 {[%clk 0:00:57]}  e4 {[%clk 0:00:05]} 43. Qxe4 {[%clk 0:00:49]}  Qf6 {[%clk 0:00:05]} 44. Bxf8 {[%clk 0:00:47]}  Bxf8 {[%clk 0:00:04]} 45. Qe5 {[%clk 0:00:43]}  Bd6 {[%clk 0:00:04]} 46. d8=Q+ {[%clk 0:00:42]}  Kg7 {[%clk 0:00:02]} 47. Qxf6+ {[%clk 0:00:42]} 1-0


[Site "https://www.chess.com"]

[Event "Titled Tuesday Blitz January 10 Late 2023"]
[White "Martinez, Marcel"]
[Black "Tyagi, Kushan"]
[WhiteFideId "2016249"]
[BlackFideId "2040069"]
[WhiteElo "2402"]
[BlackElo "2060"]
[Result "1/2-1/2"]
[Round "05"]
[TimeControl "180+2"]
[Date "2023.01.10"]
[WhiteClock "0:00:03"]
[BlackClock "0:00:08"]

1. e4 {[%clk 0:00:00]}  c5 {[%clk 0:00:00]} 2. Nf3 {[%clk 0:03:00]}  e6 {[%clk 0:02:58]} 3. d4 {[%clk 0:02:59]}  cxd4 {[%clk 0:02:54]} 4. Nxd4 {[%clk 0:02:56]}  a6 {[%clk 0:02:55]} 5. Bd3 {[%clk 0:02:56]}  Bc5 {[%clk 0:02:55]} 6. Nb3 {[%clk 0:02:55]}  Be7 {[%clk 0:02:55]} 7. Qg4 {[%clk 0:02:54]}  g6 {[%clk 0:02:55]} 8. Qe2 {[%clk 0:02:51]}  d6 {[%clk 0:02:55]} 9. f4 {[%clk 0:02:45]}  Nd7 {[%clk 0:02:54]} 10. O-O {[%clk 0:02:43]}  Qc7 {[%clk 0:02:54]} 11. c4 {[%clk 0:02:42]}  b6 {[%clk 0:02:50]} 12. Nc3 {[%clk 0:02:36]}  Bb7 {[%clk 0:02:45]} 13. Bd2 {[%clk 0:02:36]}  Ngf6 {[%clk 0:02:44]} 14. Rae1 {[%clk 0:02:32]}  h5 {[%clk 0:02:44]} 15. e5 {[%clk 0:02:30]}  Ng4 {[%clk 0:02:39]} 16. exd6 {[%clk 0:01:31]}  Qxd6 {[%clk 0:02:26]} 17. Ne4 {[%clk 0:01:26]}  Qc7 {[%clk 0:02:18]} 18. h3 {[%clk 0:01:24]}  Nh6 {[%clk 0:02:16]} 19. Bc3 {[%clk 0:01:21]}  Rg8 {[%clk 0:02:07]} 20. Ng5 {[%clk 0:01:17]}  Nf5 {[%clk 0:01:53]} 21. Bxf5 {[%clk 0:01:12]}  gxf5 {[%clk 0:01:44]} 22. Qxh5 {[%clk 0:00:46]}  Bxg5 {[%clk 0:01:40]} 23. fxg5 {[%clk 0:00:46]}  O-O-O {[%clk 0:01:33]} 24. Rf2 {[%clk 0:00:32]}  Rg6 {[%clk 0:01:26]} 25. h4 {[%clk 0:00:22]}  Nc5 {[%clk 0:01:19]} 26. Nxc5 {[%clk 0:00:21]}  Qxc5 {[%clk 0:01:10]} 27. Bf6 {[%clk 0:00:20]}  Rd2 {[%clk 0:01:11]} 28. Rf1 {[%clk 0:00:18]}  f4 {[%clk 0:00:49]} 29. b4 {[%clk 0:00:15]}  Qe3 {[%clk 0:00:21]} 30. Qh8+ {[%clk 0:00:15]}  Kc7 {[%clk 0:00:20]} 31. Qf8 {[%clk 0:00:14]}  Rd7 {[%clk 0:00:20]} 32. h5 {[%clk 0:00:14]}  Rxf6 {[%clk 0:00:19]} 33. gxf6 {[%clk 0:00:10]}  e5 {[%clk 0:00:19]} 34. Qg7 {[%clk 0:00:10]}  f3 {[%clk 0:00:17]} 35. gxf3 {[%clk 0:00:10]}  Bxf3 {[%clk 0:00:15]} 36. h6 {[%clk 0:00:08]}  Rd4 {[%clk 0:00:14]} 37. Kh2 {[%clk 0:00:08]}  Rh4+ {[%clk 0:00:09]} 38. Kg3 {[%clk 0:00:05]}  Rg4+ {[%clk 0:00:08]} 39. Qxg4 {[%clk 0:00:06]}  Bxg4+ {[%clk 0:00:08]} 40. Kxg4 {[%clk 0:00:04]}  Qxh6 {[%clk 0:00:09]} 41. Kf5 {[%clk 0:00:05]}  Qh5+ {[%clk 0:00:09]} 42. Ke4 {[%clk 0:00:04]}  Qg4+ {[%clk 0:00:09]} 43. Kxe5 {[%clk 0:00:04]}  Qxc4 {[%clk 0:00:08]} 44. Rf4 {[%clk 0:00:03]}  Qe6+ {[%clk 0:00:08]} 45. Kd4 {[%clk 0:00:02]}  Qd6+ {[%clk 0:00:08]} 46. Kc3 {[%clk 0:00:03]}  Qe5+ {[%clk 0:00:07]} 47. Kb3 {[%clk 0:00:03]}  Qe3+ {[%clk 0:00:08]} 48. Kb2 {[%clk 0:00:03]}  Qd2+ {[%clk 0:00:08]} 49. Kb3 {[%clk 0:00:02]}  Qd3+ {[%clk 0:00:08]} 50. Kb2 {[%clk 0:00:02]}  Qd2+ {[%clk 0:00:08]} 51. Kb3 {[%clk 0:00:03]}  Qd3+ {[%clk 0:00:08]} 52. Kb2 {[%clk 0:00:03]}  Qd2+ {[%clk 0:00:08]} 1/2-1/2


[Site "https://www.chess.com"]

[Event "Titled Tuesday Blitz January 10 Late 2023"]
[White "Atanasov, Radislav"]
[Black "Abdulla, Murad"]
[WhiteFideId "2901471"]
[BlackFideId "2403757"]
[WhiteElo "2025"]
[BlackElo "2307"]
[Result "0-1"]
[Round "05"]
[TimeControl "180+2"]
[Date "2023.01.10"]
[WhiteClock "0:00:05"]
[BlackClock "0:00:37"]

1. e4 {[%clk 0:00:00]}  c5 {[%clk 0:00:00]} 2. c3 {[%clk 0:02:59]}  Nf6 {[%clk 0:02:58]} 3. e5 {[%clk 0:02:59]}  Nd5 {[%clk 0:02:57]} 4. d4 {[%clk 0:02:59]}  cxd4 {[%clk 0:02:57]} 5. Nf3 {[%clk 0:02:59]}  Nc6 {[%clk 0:02:58]} 6. cxd4 {[%clk 0:02:59]}  d6 {[%clk 0:02:58]} 7. Bc4 {[%clk 0:02:59]}  Nb6 {[%clk 0:02:58]} 8. Bb5 {[%clk 0:02:59]}  d5 {[%clk 0:02:54]} 9. a4 {[%clk 0:02:59]}  a6 {[%clk 0:02:54]} 10. Bxc6+ {[%clk 0:02:58]}  bxc6 {[%clk 0:02:53]} 11. a5 {[%clk 0:02:43]}  Nc4 {[%clk 0:02:54]} 12. Qa4 {[%clk 0:02:43]}  Bd7 {[%clk 0:02:54]} 13. b3 {[%clk 0:02:38]}  c5 {[%clk 0:02:49]} 14. Qa2 {[%clk 0:02:32]}  Bb5 {[%clk 0:02:45]} 15. bxc4 {[%clk 0:02:29]}  Bxc4 {[%clk 0:02:37]} 16. Qa4+ {[%clk 0:02:25]}  Bb5 {[%clk 0:02:38]} 17. Qc2 {[%clk 0:02:15]}  e6 {[%clk 0:02:38]} 18. Nc3 {[%clk 0:02:03]}  Bc4 {[%clk 0:02:28]} 19. Qa4+ {[%clk 0:01:52]}  Qd7 {[%clk 0:02:27]} 20. Qxd7+ {[%clk 0:01:50]}  Kxd7 {[%clk 0:02:22]} 21. Ba3 {[%clk 0:01:48]}  cxd4 {[%clk 0:02:23]} 22. Nxd4 {[%clk 0:01:46]}  Rb8 {[%clk 0:02:15]} 23. Kd2 {[%clk 0:01:44]}  f6 {[%clk 0:02:12]} 24. exf6 {[%clk 0:01:16]}  gxf6 {[%clk 0:01:42]} 25. Bxf8 {[%clk 0:01:10]}  Rhxf8 {[%clk 0:01:43]} 26. Rab1 {[%clk 0:01:03]}  e5 {[%clk 0:01:44]} 27. Nf5 {[%clk 0:01:04]}  Bb3 {[%clk 0:01:40]} 28. h4 {[%clk 0:01:01]}  Ke6 {[%clk 0:01:36]} 29. g4 {[%clk 0:00:48]}  Rb4 {[%clk 0:01:28]} 30. f3 {[%clk 0:00:34]}  Rfb8 {[%clk 0:01:28]} 31. h5 {[%clk 0:00:33]}  Bc4 {[%clk 0:01:22]} 32. Rxb4 {[%clk 0:00:30]}  Rxb4 {[%clk 0:01:15]} 33. Rb1 {[%clk 0:00:29]}  Rxb1 {[%clk 0:01:15]} 34. Nxb1 {[%clk 0:00:26]}  d4 {[%clk 0:01:12]} 35. Na3 {[%clk 0:00:26]}  Bd5 {[%clk 0:01:12]} 36. Ke2 {[%clk 0:00:25]}  Bc6 {[%clk 0:01:09]} 37. f4 {[%clk 0:00:20]}  Ba4 {[%clk 0:01:01]} 38. fxe5 {[%clk 0:00:19]}  fxe5 {[%clk 0:00:55]} 39. h6 {[%clk 0:00:18]}  Kf6 {[%clk 0:00:52]} 40. Nd6 {[%clk 0:00:11]}  Kg5 {[%clk 0:00:49]} 41. Nf7+ {[%clk 0:00:09]}  Kf6 {[%clk 0:00:45]} 42. Nd6 {[%clk 0:00:09]}  Bc6 {[%clk 0:00:40]} 43. Nac4 {[%clk 0:00:05]}  e4 {[%clk 0:00:37]} 0-1


[Site "https://www.chess.com"]

[Event "Titled Tuesday Blitz January 10 Late 2023"]
[White "Kleiman, Jake"]
[Black "Antonio, Jorge Carlos"]
[WhiteFideId "2020041"]
[BlackFideId "113190"]
[WhiteElo "2399"]
[BlackElo "2277"]
[Result "1-0"]
[Round "05"]
[TimeControl "180+2"]
[Date "2023.01.10"]
[WhiteClock "0:01:48"]
[BlackClock "0:01:45"]

1. Nf3 {[%clk 0:00:00]}  d5 {[%clk 0:00:00]} 2. g3 {[%clk 0:02:55]}  Nf6 {[%clk 0:02:59]} 3. Bg2 {[%clk 0:02:56]}  Bf5 {[%clk 0:02:59]} 4. O-O {[%clk 0:02:56]}  e6 {[%clk 0:02:59]} 5. d3 {[%clk 0:02:57]}  Be7 {[%clk 0:02:59]} 6. Nbd2 {[%clk 0:02:57]}  c6 {[%clk 0:02:57]} 7. Qe1 {[%clk 0:02:58]}  h6 {[%clk 0:02:56]} 8. e4 {[%clk 0:02:58]}  dxe4 {[%clk 0:02:55]} 9. dxe4 {[%clk 0:02:59]}  Bg6 {[%clk 0:02:54]} 10. Qe2 {[%clk 0:02:59]}  Qb6 {[%clk 0:02:54]} 11. Ne5 {[%clk 0:03:00]}  Bh7 {[%clk 0:02:52]} 12. Ndc4 {[%clk 0:02:57]}  Qc7 {[%clk 0:02:46]} 13. Nd3 {[%clk 0:02:47]}  O-O {[%clk 0:02:41]} 14. Bf4 {[%clk 0:02:20]}  Qc8 {[%clk 0:02:30]} 15. Nd6 {[%clk 0:02:18]}  Bxd6 {[%clk 0:02:26]} 16. Bxd6 {[%clk 0:02:10]}  Rd8 {[%clk 0:02:19]} 17. Be7 {[%clk 0:02:10]}  Rd7 {[%clk 0:02:19]} 18. Bxf6 {[%clk 0:02:05]}  gxf6 {[%clk 0:02:13]} 19. Qg4+ {[%clk 0:02:05]}  Bg6 {[%clk 0:02:13]} 20. f4 {[%clk 0:01:55]}  h5 {[%clk 0:02:09]} 21. Qh4 {[%clk 0:01:52]}  f5 {[%clk 0:02:01]} 22. e5 {[%clk 0:01:50]}  Rxd3 {[%clk 0:01:51]} 23. cxd3 {[%clk 0:01:48]}  Qd8 {[%clk 0:01:45]} 24. Qxd8+ {[%clk 0:01:48]} 1-0


[Site "https://www.chess.com"]